[Event "Polish Youth Ekstraliga 2022"]
[Site "Lublin"]
[Date "2022.06.28"]
[Round "4.11"]
[White "Adamczyk, Zuzanna"]
[Black "Wikar, Martyna"]
[Result "1/2-1/2"]
[ECO "E92"]
[WhiteElo "1909"]
[BlackElo "2197"]
[Annotator "RC"]
[PlyCount "92"]
[EventDate "2022.06.24"]
[EventType "team-tourn"]
[EventCountry "POL"]
[SourceTitle "playchess.com"]
[Source "ChessBase"]
[SourceQuality "1"]
[TimeControl "40/5400+30:1800+30"]

1. d4 {[%emt 0:00:04]} Nf6 {[%emt 0:00:20]} 2. c4 {[%emt 0:00:10]} g6 {[%emt 0:00:08]} 3. Nc3 {[%emt 0:00:16]} Bg7 {[%emt 0:00:05]} 4. e4 {[%emt 0:00:15]} d6 {[%emt 0:00:06]} 5. Nf3 {[%emt 0:00:22]} O-O {[%emt 0:00:11]} 6. Be2 {[%emt 0:00:07]} e5 {[%emt 0:00:33]} 7. Be3 {[%emt 0:00:16]} Nc6 {[%emt 0:01:26]} 8. d5 {[%emt 0:00:41]} Ne7 {[%emt 0:00:10]} 9. Nd2 {[%emt 0:00:09]} c5 {[%emt 0:13:35]} 10. g4 {[%emt 0:15:41]} h6 {[%emt 0:02:17]} 11. h4 {[%emt 0:04:38]} Ne8 {[%emt 0:02:35]} 12. Rg1 {[%emt 0:10:37]} a6 {[%emt 0:01:50]} 13. a4 {[%emt 0:06:06]} Bd7 {[%emt 0:01:24]} 14. h5 {[%emt 0:19:14]} g5 {[%emt 0:01:48]} 15. Ndb1 {[%emt 0:01:52]} Qa5 {[%emt 0:01:28]} 16. Bd2 {[%emt 0:08:05]} Nc8 {[%emt 0:02:32]} 17. b3 {[%emt 0:05:32]} Bf6 {[%emt 0:01:46]} 18. Na3 {[%emt 0:00:58]} Qc7 {[%emt 0:01:03]} 19. Bd3 {[%emt 0:07:08]} Na7 {[%emt 0:02:08]} 20. Qe2 {[%emt 0:02:55]} Qb8 {[%emt 0:01:55]} 21. f3 {[%emt 0:08:45]} Nc7 {[%emt 0:02:18]} 22. Kf2 {[%emt 0:00:54]} Bd8 {[%emt 0:01:45]} 23. Rgb1 {[%emt 0:01:13]} Kg7 {[%emt 0:02:16]} 24. Ke1 {[%emt 0:00:33]} Ne8 {[%emt 0:00:40]} 25. Nd1 {[%emt 0:00:40]} Kf6 {[%emt 0:06:56]} 26. Qf1 {[%emt 0:00:59]} b5 {[%emt 0:01:42]} 27. axb5 {[%emt 0:01:48]} axb5 {[%emt 0:00:17]} 28. Nxb5 {[%emt 0:00:33]} Nxb5 {[%emt 0:01:01]} 29. Rxa8 {[%emt 0:00:47]} Qxa8 {[%emt 0:00:09]} 30. cxb5 {[%emt 0:00:06]} Ba5 {[%emt 0:01:27]} 31. Qe2 {[%emt 0:00:46]} Bxd2+ {[%emt 0:06:33]} 32. Qxd2 {[%emt 0:00:14]} Nc7 {[%emt 0:00:22]} 33. Nc3 {[%emt 0:01:06]} Rb8 {[%emt 0:01:20]} 34. b4 {[%emt 0:00:29]} Qa7 {[%emt 0:04:09]} 35. bxc5 {[%emt 0:00:54]} Qxc5 {[%emt 0:00:14]} 36. Ke2 {[%emt 0:00:42]} Nxb5 {[%emt 0:03:00]} 37. Nxb5 {[%emt 0:00:25]} Bxb5 {[%emt 0:00:24]} 38. Bxb5 {[%emt 0:00:40]} Rxb5 {[%emt 0:00:11]} 39. Rxb5 {[%emt 0:00:16]} Qxb5+ {[%emt 0:00:03]} 40. Qd3 {[%emt 0:00:00]} Qb6 {[%emt 0:00:00]} 41. Qa3 {[%emt 0:03:23]} Ke7 {[%emt 0:01:39]} 42. Qe3 {[%emt 0:01:22]} Qa6+ {[%emt 0:01:43]} 43. Qd3 {[%emt 0:01:18]} Qa1 {[%emt 0:00:25]} 44. Qc2 {[%emt 0:04:13]} Kf6 {[%emt 0:01:33]} 45. Qc8 {[%emt 0:03:31]} Qb2+ {[%emt 0:00:25]} 46. Ke1 {[%emt 0:01:05]} Qb4+ {[%emt 0:00:31]} 1/2-1/2

[Event "Polish Youth Ekstraliga 2022"]
[Site "Lublin"]
[Date "2022.06.28"]
[Round "4.12"]
[White "Natoli, Alessia"]
[Black "Gaszka, Zuzanna"]
[Result "1-0"]
[ECO "C44"]
[WhiteElo "1680"]
[BlackElo "1621"]
[Annotator "NA RC"]
[PlyCount "77"]
[EventDate "2022.06.24"]
[EventType "team-tourn"]
[EventCountry "POL"]
[SourceTitle "playchess.com"]
[Source "ChessBase"]
[SourceQuality "1"]
[TimeControl "40/5400+30:1800+30"]

1. e4 {[%emt 0:01:20]} e5 {[%emt 0:00:06]} 2. Nf3 {[%emt 0:00:37]} Nc6 {[%emt 0:00:06]} 3. Be2 {[%emt 0:01:16]} Nf6 {[%emt 0:01:52]} 4. d3 {[%emt 0:00:54]} Be7 {[%emt 0:01:19]} 5. Nbd2 {[%emt 0:01:57]} O-O {[%emt 0:02:03]} 6. O-O {[%emt 0:02:05]} d6 {[%emt 0:03:28]} 7. c3 {[%emt 0:01:58]} Re8 {[%emt 0:04:23]} 8. Qc2 {[%emt 0:03:53]} Bf8 {[%emt 0:02:37]} 9. b4 {[%emt 0:03:05]} h6 {[%emt 0:03:10]} 10. a4 {[%emt 0:03:46]} g6 {[%emt 0:04:09]} 11. Nb3 {[%emt 0:03:37]} Bg7 {[%emt 0:02:06]} 12. b5 {[%emt 0:04:11]} Nb8 {[%emt 0:02:14]} 13. Be3 {[%emt 0:04:24]} Nbd7 {[%emt 0:07:37]} 14. a5 {[%emt 0:04:30]} c6 {[%emt 0:08:00]} 15. a6 {[%emt 0:10:13]} c5 {[%emt 0:06:37]} 16. axb7 {[%emt 0:02:56]} Bxb7 {[%emt 0:00:09]} 17. Nfd2 {[%emt 0:04:45]} Nb6 {[%emt 0:02:58]} 18. f3 {[%emt 0:04:38]} Qd7 {[%emt 0:10:16]} 19. Rfb1 {[%emt 0:03:18]} Reb8 {[%emt 0:04:01]} 20. d4 {[%emt 0:05:00]} cxd4 {[%emt 0:02:13]} 21. cxd4 {[%emt 0:00:08]} Ne8 {[%emt 0:05:07]} 22. Ra2 {[%emt 0:02:32]} Nc7 {[%emt 0:02:29]} 23. dxe5 {[%emt 0:04:35]} dxe5 {[%emt 0:01:27]} 24. Nc5 {[%emt 0:08:08]} Qe7 {[%emt 0:04:08]} 25. Nxb7 {[%emt 0:01:32]} Rxb7 {[%emt 0:00:11]} 26. Qc6 {[%emt 0:00:49]} Rab8 {[%emt 0:04:56]} 27. Bc5 {[%emt 0:02:46]} Qe6 {[%emt 0:01:09]} 28. Rba1 {[%emt 0:01:43]} Bf8 {[%emt 0:05:52]} 29. Bxf8 {[%emt 0:02:00]} Kxf8 {[%emt 0:00:10]} 30. Rxa7 {[%emt 0:01:07]} Rxa7 {[%emt 0:02:14]} 31. Rxa7 {[%emt 0:00:03]} Qxc6 {[%emt 0:01:08]} 32. bxc6 {[%emt 0:00:02]} Rc8 {[%emt 0:01:14]} 33. Rb7 {[%emt 0:00:53]} Na4 {[%emt 0:01:05]} 34. Nc4 {[%emt 0:01:37]} Ne6 {[%emt 0:01:28]} 35. Nxe5 {[%emt 0:02:00]} Nd8 {[%emt 0:00:40]} 36. Bb5 {[%emt 0:02:08]} Nc3 {[%emt 0:00:38]} 37. Bc4 {[%emt 0:01:20]} Nxc6 {[%emt 0:00:58]} 38. Rxf7+ {[%emt 0:01:23]} Ke8 {[%emt 0:00:09]} 39. Nxg6 {[%emt 0:00:47]} 1-0

[Event "Polish Youth Ekstraliga 2022"]
[Site "Lublin"]
[Date "2022.06.28"]
[Round "4.13"]
[White "Kutowski, Marcel"]
[Black "Karolczuk, Iwo"]
[Result "0-1"]
[ECO "B92"]
[WhiteElo "1954"]
[BlackElo "2319"]
[Annotator "TA"]
[PlyCount "86"]
[EventDate "2022.06.24"]
[EventType "team-tourn"]
[EventCountry "POL"]
[SourceTitle "playchess.com"]
[Source "ChessBase"]
[SourceQuality "1"]
[TimeControl "40/5400+30:1800+30"]

{[%evp 25,86,24,31,19,36,37,52,56,129,129,133,115,99,102,139,105,148,159,147,98,95,118,99,75,111,103,119,99,111,121,106,0,0,0,0,-7,22,22,22,22,22,24,58,17,28,22,30,59,127,-73,-61,-119,-116,-117,-138,-29984,-5265,-4910,-2412,-1938,-1936,-1139,-1028]} 1. e4 {[%emt 0:00:02]} c5 {[%emt 0:00:02]} 2. Nf3 {[%emt 0:00:07]} d6 {[%emt 0:02:18]} 3. d4 {[%emt 0:00:06]} cxd4 {[%emt 0:00:03]} 4. Nxd4 {[%emt 0:00:06]} Nf6 {[%emt 0:00:03]} 5. Nc3 {[%emt 0:00:02]} a6 {[%emt 0:00:05]} 6. Be2 {[%emt 0:00:04]} e5 {[%emt 0:02:01]} 7. Nb3 {[%emt 0:00:07]} Be7 {[%emt 0:00:03]} 8. Be3 {[%emt 0:00:12]} Be6 {[%emt 0:00:15]} 9. Nd5 {[%emt 0:00:59]} Nxd5 {[%emt 0:03:35]} 10. exd5 {[%emt 0:00:23]} Bf5 {[%emt 0:01:03]} 11. Qd2 {[%emt 0:02:25]} O-O {[%emt 0:02:03]} 12. O-O {[%emt 0:02:18]} Nd7 {[%emt 0:01:23]} 13. Na5 {[%emt 0:01:10]} Qc7 {[%emt 0:06:39]} 14. c4 {[%emt 0:02:39][%cal Bc2c4,Bc4c5][%mdl 32] B92: Sicilian Najdorf: 6 Be2.} Bg6 {[%emt 0:07:13]} 15. b4 {[%emt 0:02:57][%cal Oc4c5]} f5 {[%emt 0:03:28]} 16. f4 {[%emt 0:02:23] White is slightly better.} Nf6 {[%emt 0:19:47]} (16... exf4 $14 17. Bxf4 Qb6+ 18. Kh1 Nf6) 17. fxe5 $1 $16 {[%emt 0:11:12]} dxe5 {[%emt 0:02:24]} 18. c5 {[%emt 0:04:05] d6 is the strong threat.} f4 {[%emt 0:03:22]} 19. Bf2 {[%emt 0:02:46]} Ne4 {[%emt 0:01:36]} 20. Qe1 {[%emt 0:02:13]} Bf6 {[%emt 0:03:43]} 21. d6 {[%emt 0:02:36]} Qd7 {[%emt 0:00:17] [#]} 22. Bc4+ $146 {[%emt 0:12:19]} (22. Rd1 $142) ({Predecessor:} 22. Rd1 Rae8 23. Kh1 Bd8 24. Bh4 Bxh4 25. Qxh4 Bf5 26. Bf3 Nc3 27. Bxb7 Nxd1 28. Bc6 {1-0 (39) Shuvalova,P (2515)-Beydullayeva,G (2278) Terme Catez 2021}) 22... Kh8 {[%emt 0:00:08]} 23. Bd5 {[%emt 0:09:54]} Nxf2 {[%emt 0:00:29]} 24. Qxf2 {[%emt 0:03:25]} e4 {[%emt 0:03:19][%cal Be5e4,Be4e3,Be3e2][%mdl 32]} 25. Rad1 {[%emt 0:05:09]} (25. Bxb7 $6 Bxa1 26. Bxa8 Bc3 $11) 25... Qb5 {[%emt 0:08:49]} 26. Qe1 {[%emt 0:04:24]} (26. Qxf4 Bd4+ $1 27. Rxd4 Rxf4 28. Rxf4 Qe2 $17) (26. Nxb7 $2 e3 27. Qf3 (27. Qxf4 $2 e2 $19) 27... e2 $19) 26... e3 {[%emt 0:12:13]} 27. Bc4 {[%emt 0:08:47] Against e2} (27. Rxf4 $2 e2 28. Rd2 Bc3 29. Qxe2 Rxf4 $19) 27... Qa4 {[%emt 0:01:27] [#]} 28. Bb3 {[%emt 0:02:23]} ({And not} 28. Nxb7 Rab8 29. Rxf4 Rxb7 $17) (28. Rxf4 $6 Bc3 29. Rxf8+ Rxf8 $11) (28. d7 $1 $16 {Strongly threatening Bb3.} Bc2 29. Rd6) 28... Qe8 $11 {[%emt 0:02:24]} 29. d7 {[%emt 0:04:09]} Qe5 {aiming for ...e2.} 30. Rd5 $132 {[%emt 0:04:55][%mdl 2048] White is not holding back} ({Not} 30. Nxb7 $2 e2 31. c6 Qe4 $19) 30... Qe4 {[%emt 0:03:32]} 31. Nxb7 {[%emt 0:01:13] Black must now prevent c6.} e2 {[%emt 0:03:34]} 32. Rf2 $1 {[%emt 0:01:39]} Bd4 {[%emt 0:02:12] [#]} 33. Rxd4 {[%emt 0:01:08]} Qxd4 {[%emt 0:00:05] Really sharp!} 34. d8=Q {[%emt 0:00:54]} (34. Qxe2 $5 {[%cal Re2d2]} Qxd7 35. Nd6 $14) 34... Raxd8 {[%emt 0:00:54]} (34... Rfxd8 {looks sharper.} 35. Nxd8 Rxd8 36. Qxe2 Be4) 35. Nxd8 {[%emt 0:00:14]} Rxd8 {[%emt 0:00:10]} 36. Qxe2 {[%emt 0:01:16]} Qxb4 {[%emt 0:03:32]} (36... Be4 $14) 37. Qc4 $2 {[%emt 0:04:44]} (37. Qe5 $16 {is necessary to keep the advantage.}) 37... Qe1+ $17 {[%emt 0:00:55]} 38. Rf1 {[%emt 0:01:43]} ({Better is} 38. Qf1 $1 $15 Qe3 39. Kh1) 38... Qe3+ {[%emt 0:00:49]} 39. Kh1 {[%emt 0:00:15] [#]} Be4 {[%emt 0:00:45] Inhibits Rf3. Threatens to win with ...f3. Black is more active.} 40. Qc1 $2 {[%emt 0:00:00][%mdl 8192]} ({Don't blunder} 40. c6 $2 f3 41. Rxf3 Bxf3 $19) (40. Bd1 $17) 40... Qe2 {[%emt 0:00:00]} (40... Rd2 $142 41. Rf3 Bxf3 42. Qxd2 Qxd2 43. gxf3 Qf2 44. Bc4 Qxf3+ 45. Kg1 Qe3+ 46. Kf1 Qc1+ 47. Ke2 Qxc4+ 48. Kf3 Qf1+ 49. Kg4 f3 50. c6 f2 51. c7 Qc4+ 52. Kg5 f1=Q 53. c8=Q+ Qxc8 54. Kh5 Qfh3+ 55. Kg5 Qh6#) 41. Rg1 $19 {[%emt 0:04:06] Black is clearly winning.} f3 {[%emt 0:03:18][%cal Rf3g2]} 42. h3 {[%emt 0:00:13]} f2 {[%emt 0:03:10] ( -> ...Rd3)} 43. Rf1 {[%emt 0:00:11]} Bd3 {[%emt 0:00:35] Black used his chance.  Weighted Error Value: White=0.40/Black=0.38} 0-1

[Event "Polish Youth Ekstraliga 2022"]
[Site "Lublin"]
[Date "2022.06.28"]
[Round "4.14"]
[White "Budzisz, Adrian"]
[Black "Wilk, Igor"]
[Result "1-0"]
[ECO "A14"]
[WhiteElo "2152"]
[BlackElo "1824"]
[Annotator "RC"]
[PlyCount "113"]
[EventDate "2022.06.24"]
[EventType "team-tourn"]
[EventCountry "POL"]
[SourceTitle "playchess.com"]
[Source "ChessBase"]
[SourceQuality "1"]
[TimeControl "40/5400+30:1800+30"]

1. Nf3 {[%emt 0:00:03]} d5 {[%emt 0:00:17]} 2. g3 {[%emt 0:00:12]} e6 {[%emt 0:00:31]} 3. Bg2 {[%emt 0:00:07]} Nf6 {[%emt 0:00:16]} 4. c4 {[%emt 0:00:24]} Be7 {[%emt 0:00:31]} 5. O-O {[%emt 0:00:20]} O-O {[%emt 0:00:11]} 6. b3 {[%emt 0:00:11]} c6 {[%emt 0:01:44]} 7. d3 {[%emt 0:01:20]} b6 {[%emt 0:01:43]} 8. Bb2 {[%emt 0:00:14]} Bb7 {[%emt 0:00:35]} 9. Qc2 {[%emt 0:01:06]} Nbd7 {[%emt 0:01:10]} 10. Rd1 {[%emt 0:00:25]} c5 {[%emt 0:03:10]} 11. cxd5 {[%emt 0:03:12]} exd5 {[%emt 0:06:51]} 12. d4 {[%emt 0:03:23]} Rc8 {[%emt 0:03:04]} 13. Nc3 {[%emt 0:05:07]} Qc7 {[%emt 0:05:39]} 14. Rac1 {[%emt 0:00:24]} c4 {[%emt 0:01:22]} 15. Ne5 {[%emt 0:03:17]} Nxe5 {[%emt 0:06:57]} 16. dxe5 {[%emt 0:00:20]} cxb3 {[%emt 0:00:08]} 17. Qb1 {[%emt 0:04:47]} Qxe5 {[%emt 0:17:27]} 18. Nxd5 {[%emt 0:01:23]} Qe6 {[%emt 0:01:55]} 19. Nxf6+ {[%emt 0:00:46]} Bxf6 {[%emt 0:00:07]} 20. Bxb7 {[%emt 0:00:08]} bxa2 {[%emt 0:00:11]} 21. Qa1 {[%emt 0:00:25]} Rxc1 {[%emt 0:00:57]} 22. Rxc1 {[%emt 0:00:57]} Rd8 {[%emt 0:02:31]} 23. e4 {[%emt 0:01:16]} Rd2 {[%emt 0:02:06]} 24. e5 {[%emt 0:06:01]} Qf5 {[%emt 0:02:55]} 25. Rf1 {[%emt 0:02:36]} Be7 {[%emt 0:00:40]} 26. Bc3 {[%emt 0:05:09]} Rc2 {[%emt 0:06:20]} 27. Bd5 {[%emt 0:00:23]} Qd3 {[%emt 0:00:37]} 28. Bd4 {[%emt 0:09:04]} Rd2 {[%emt 0:00:21]} 29. Be3 {[%emt 0:00:17]} Qxd5 {[%emt 0:02:09]} 30. Bxd2 {[%emt 0:00:03]} Qxd2 {[%emt 0:00:09]} 31. Rd1 {[%emt 0:00:30]} Qc2 {[%emt 0:03:38]} 32. Rc1 {[%emt 0:05:12]} Qd2 {[%emt 0:02:56]} 33. Rd1 {[%emt 0:04:43]} Qc2 {[%emt 0:01:59]} 34. Qc1 {[%emt 0:00:03]} Qxc1 {[%emt 0:01:18]} 35. Rxc1 {[%emt 0:00:06]} Bc5 {[%emt 0:00:35]} 36. Ra1 {[%emt 0:00:07]} Kf8 {[%emt 0:02:35]} 37. Rxa2 {[%emt 0:00:04]} a5 {[%emt 0:00:04]} 38. Kg2 {[%emt 0:00:35]} Ke7 {[%emt 0:00:59]} 39. Kf3 {[%emt 0:00:05]} Ke6 {[%emt 0:01:02]} 40. Ke4 {[%emt 0:00:00]} a4 {[%emt 0:00:00]} 41. f4 {[%emt 0:02:02]} a3 {[%emt 0:00:29]} 42. f5+ {[%emt 0:00:10]} Kd7 {[%emt 0:00:11]} 43. Kd5 {[%emt 0:00:06]} Be7 {[%emt 0:00:23]} 44. Rc2 {[%emt 0:03:28]} Bb4 {[%emt 0:03:10]} 45. g4 {[%emt 0:03:44]} h6 {[%emt 0:03:55]} 46. h4 {[%emt 0:01:44]} Be7 {[%emt 0:00:29]} 47. h5 {[%emt 0:03:31]} Bg5 {[%emt 0:03:53]} 48. Rc3 {[%emt 0:02:00]} Be7 {[%emt 0:00:32]} 49. Rc1 {[%emt 0:01:07]} Bb4 {[%emt 0:03:14]} 50. Kc4 {[%emt 0:01:43]} Bc5 {[%emt 0:01:50]} 51. Rd1+ {[%emt 0:00:50]} Ke7 {[%emt 0:00:34]} 52. Kb3 {[%emt 0:01:16]} Ke8 {[%emt 0:04:01]} 53. Rd5 {[%emt 0:00:45]} Be7 {[%emt 0:02:29]} 54. Rb5 {[%emt 0:00:15]} Bc5 {[%emt 0:00:16]} 55. Rxc5 {[%emt 0:00:33]} bxc5 {[%emt 0:00:07]} 56. Kxa3 {[%emt 0:00:03]} Kd7 {[%emt 0:00:11]} 57. Kb3 {[%emt 0:00:04]} 1-0

[Event "Polish Youth Ekstraliga 2022"]
[Site "Lublin"]
[Date "2022.06.28"]
[Round "4.15"]
[White "Bartoszczuk, Adam"]
[Black "Ptaszynski, Szymon"]
[Result "0-1"]
[ECO "C42"]
[WhiteElo "1662"]
[BlackElo "1781"]
[Annotator "NA RC"]
[PlyCount "110"]
[EventDate "2022.06.24"]
[EventType "team-tourn"]
[EventCountry "POL"]
[SourceTitle "playchess.com"]
[Source "ChessBase"]
[SourceQuality "1"]
[TimeControl "40/5400+30:1800+30"]

1. e4 {[%emt 0:00:02]} e5 {[%emt 0:00:22]} 2. Nf3 {[%emt 0:00:14]} Nf6 {[%emt 0:00:04]} 3. Nxe5 {[%emt 0:00:13]} d6 {[%emt 0:00:04]} 4. Nf3 {[%emt 0:00:06]} Nxe4 {[%emt 0:00:08]} 5. d4 {[%emt 0:00:28]} d5 {[%emt 0:00:04]} 6. Bd3 {[%emt 0:00:30]} Bd6 {[%emt 0:00:06]} 7. O-O {[%emt 0:01:10]} O-O {[%emt 0:00:04]} 8. h3 {[%emt 0:03:59]} c6 {[%emt 0:01:01]} 9. c3 {[%emt 0:01:53]} Bf5 {[%emt 0:02:58]} 10. Qc2 {[%emt 0:10:34]} Bg6 {[%emt 0:04:56]} 11. Nbd2 {[%emt 0:11:33]} Re8 {[%emt 0:04:50]} 12. Re1 {[%emt 0:05:17]} f5 {[%emt 0:14:29]} 13. Qb3 {[%emt 0:04:53]} Qc7 {[%emt 0:04:05]} 14. Bxe4 {[%emt 0:04:15]} fxe4 {[%emt 0:00:10]} 15. Nh4 {[%emt 0:00:38]} Bf7 {[%emt 0:07:19]} 16. Nf5 {[%emt 0:03:10]} Bf8 {[%emt 0:07:07]} 17. Nf1 {[%emt 0:02:04]} Be6 {[%emt 0:02:15]} 18. N5g3 {[%emt 0:18:44]} Nd7 {[%emt 0:01:45]} 19. Be3 {[%emt 0:07:56]} Bd6 {[%emt 0:04:35]} 20. Qc2 {[%emt 0:03:43]} Nf6 {[%emt 0:04:35]} 21. b3 {[%emt 0:02:45]} Qd7 {[%emt 0:01:07]} 22. Ne2 {[%emt 0:09:11]} Nh5 {[%emt 0:03:24]} 23. Nfg3 {[%emt 0:00:13]} Nf6 {[%emt 0:00:34]} 24. Bf4 {[%emt 0:00:41]} Rf8 {[%emt 0:01:22]} 25. Qd2 {[%emt 0:01:21]} Bxf4 {[%emt 0:01:57]} 26. Nxf4 {[%emt 0:00:02]} Bf7 {[%emt 0:00:01]} 27. Rac1 {[%emt 0:02:13]} Rae8 {[%emt 0:00:41]} 28. Qe3 {[%emt 0:02:24]} h6 {[%emt 0:01:34]} 29. c4 {[%emt 0:01:22]} g5 {[%emt 0:00:45]} 30. Nfe2 {[%emt 0:00:24]} Bg6 {[%emt 0:00:06]} 31. Nc3 Rf7 {[%emt 0:02:26]} 32. cxd5 {[%emt 0:01:04]} cxd5 {[%emt 0:00:05]} 33. Na4 {[%emt 0:00:16]} b6 {[%emt 0:00:08]} 34. Rc3 {[%emt 0:00:45]} Ref8 {[%emt 0:00:11]} 35. Rec1 {[%emt 0:01:35]} Kh7 {[%emt 0:02:12]} 36. Rc6 {[%emt 0:01:23]} Ne8 {[%emt 0:01:38]} 37. Nh1 {[%emt 0:00:31]} Ng7 {[%emt 0:00:15]} 38. Qg3 {[%emt 0:01:24]} Nf5 {[%emt 0:01:12]} 39. Qe5 {[%emt 0:00:20]} Re8 {[%emt 0:01:03]} 40. Qc7 {[%emt 0:00:00]} Nxd4 {[%emt 0:00:00]} 41. Qxd7 {[%emt 0:03:21]} Rxd7 {[%emt 0:02:22]} 42. Rc7 {[%emt 0:00:06]} Ree7 {[%emt 0:00:16]} 43. Rxd7 {[%emt 0:00:57]} Rxd7 {[%emt 0:00:01]} 44. Rd1 {[%emt 0:00:24]} Ne2+ {[%emt 0:00:11]} 45. Kf1 {[%emt 0:00:18]} Nf4 {[%emt 0:00:17]} 46. Ng3 {[%emt 0:00:49]} Nd3 {[%emt 0:01:23]} 47. Nc3 {[%emt 0:00:45]} Kg7 {[%emt 0:01:48]} 48. Nge2 {[%emt 0:01:21]} Kf6 {[%emt 0:05:16]} 49. Nc1 {[%emt 0:04:56]} Nxc1 {[%emt 0:02:31]} 50. Rxc1 {[%emt 0:00:13]} Ke5 {[%emt 0:00:04]} 51. Ke2 {[%emt 0:01:59]} Rc7 {[%emt 0:02:25]} 52. Kd2 {[%emt 0:01:08]} d4 {[%emt 0:01:19]} 53. Nb5 {[%emt 0:01:57]} e3+ {[%emt 0:00:36]} 54. fxe3 {[%emt 0:00:13]} dxe3+ {[%emt 0:00:02]} 55. Kd1 {[%emt 0:00:43]} e2+ {[%emt 0:00:02]} 0-1

[Event "Polish Youth Ekstraliga 2022"]
[Site "Lublin"]
[Date "2022.06.28"]
[Round "4.16"]
[White "Rekuc, Patryk"]
[Black "Kaszuba, Michal"]
[Result "1-0"]
[ECO "B31"]
[WhiteElo "1842"]
[BlackElo "1307"]
[Annotator "NA RC"]
[PlyCount "43"]
[EventDate "2022.06.24"]
[EventType "team-tourn"]
[EventCountry "POL"]
[SourceTitle "playchess.com"]
[Source "ChessBase"]
[SourceQuality "1"]
[TimeControl "40/5400+30:1800+30"]

1. e4 {[%emt 0:00:03]} c5 {[%emt 0:00:15]} 2. Nf3 {[%emt 0:00:05]} Nc6 {[%emt 0:00:05]} 3. Bb5 {[%emt 0:00:05]} g6 {[%emt 0:05:34]} 4. Bxc6 {[%emt 0:00:06]} dxc6 {[%emt 0:09:03]} 5. h3 {[%emt 0:03:45]} Bg7 {[%emt 0:06:31]} 6. O-O {[%emt 0:00:12]} Nf6 {[%emt 0:04:16]} 7. d3 {[%emt 0:00:27]} O-O {[%emt 0:09:41]} 8. Nc3 {[%emt 0:01:53]} Qc7 {[%emt 0:06:10]} 9. Be3 {[%emt 0:00:47]} b6 {[%emt 0:00:14]} 10. Qd2 {[%emt 0:00:43]} Nd7 {[%emt 0:14:59]} (10... e5 $11 {feels stronger.}) 11. Bh6 {[%emt 0:01:15]} Ne5 {[%emt 0:04:11]} 12. Nh2 {[%emt 0:05:53]} Bxh6 {[%emt 0:06:55]} 13. Qxh6 {[%emt 0:00:12]} f6 {[%emt 0:00:07]} 14. Qe3 {[%emt 0:02:22]} Qd6 {[%emt 0:04:41]} 15. f4 {[%emt 0:01:55]} Nf7 {[%emt 0:00:19]} 16. Ne2 {[%emt 0:00:53]} e5 {[%emt 0:13:48]} 17. f5 {[%emt 0:01:28]} g5 {[%emt 0:01:26]} 18. Rf2 {[%emt 0:03:43]} Kg7 {[%emt 0:04:13]} 19. Raf1 {[%emt 0:00:10]} Nh6 {[%emt 0:00:35]} 20. Qg3 {[%emt 0:04:06]} Bd7 {[%emt 0:00:00]} 21. Qxg5+ {[%emt 0:01:31]} Kf7 {[%emt 0:07:23]} 22. Nf4 $19 {[%emt 0:00:00]} (22. Qxh6 $18 Ke7 23. g4) 1-0

[Event "Polish Youth Ekstraliga 2022"]
[Site "Lublin"]
[Date "2022.06.28"]
[Round "4.17"]
[White "Goraj, Barbara"]
[Black "Marcinczyk, Monika"]
[Result "1-0"]
[ECO "A10"]
[WhiteElo "2035"]
[BlackElo "1991"]
[Annotator "NA RC"]
[PlyCount "111"]
[EventDate "2022.06.24"]
[EventType "team-tourn"]
[EventCountry "POL"]
[SourceTitle "playchess.com"]
[Source "ChessBase"]
[SourceQuality "1"]
[TimeControl "40/5400+30:1800+30"]

1. c4 {[%emt 0:00:04]} b6 {[%emt 0:00:05]} 2. Nc3 {[%emt 0:02:15]} Bb7 {[%emt 0:00:08]} 3. e4 {[%emt 0:05:56]} e5 {[%emt 0:00:16]} 4. Nf3 {[%emt 0:01:51]} Nc6 {[%emt 0:00:13]} 5. d3 {[%emt 0:02:15]} Bc5 {[%emt 0:01:03]} 6. g3 {[%emt 0:01:25]} d6 {[%emt 0:04:02]} 7. Bg2 {[%emt 0:02:03]} Nge7 {[%emt 0:01:55]} 8. O-O {[%emt 0:01:45]} O-O {[%emt 0:00:37]} 9. a3 {[%emt 0:03:00]} a5 {[%emt 0:01:24]} 10. Rb1 {[%emt 0:01:12]} Qd7 {[%emt 0:08:25]} 11. Kh1 {[%emt 0:06:45]} Kh8 {[%emt 0:23:41]} 12. Ng5 {[%emt 0:10:59]} h6 {[%emt 0:14:02]} 13. Qh5 {[%emt 0:10:27]} Nd8 {[%emt 0:03:11]} 14. f4 {[%emt 0:03:56]} f5 {[%emt 0:07:09] [#]} 15. Nf3 $1 {[%emt 0:04:43]} Bd4 {[%emt 0:06:53]} 16. Nd5 {[%emt 0:05:06]} Nxd5 {[%emt 0:05:02]} 17. exd5 {[%emt 0:02:41]} c5 {[%emt 0:02:10]} 18. fxe5 {[%emt 0:02:55]} Bxe5 {[%emt 0:00:40]} 19. Nh4 {[%emt 0:00:47]} Qf7 {[%emt 0:07:00]} 20. Ng6+ {[%emt 0:02:56]} Kg8 {[%emt 0:00:07]} 21. Rxf5 {[%emt 0:00:33]} Bf6 {[%emt 0:00:23]} 22. Nxf8 {[%emt 0:01:24]} Qxh5 {[%emt 0:01:04]} 23. Rxh5 {[%emt 0:00:09]} Kxf8 {[%emt 0:00:06]} 24. Rf5 {[%emt 0:01:37]} Nf7 {[%emt 0:00:39]} 25. Bd2 {[%emt 0:01:41]} Re8 {[%emt 0:03:36]} 26. Be4 {[%emt 0:03:25]} Bc8 {[%emt 0:00:32]} 27. Rff1 {[%emt 0:04:26]} Bh3 {[%emt 0:01:17]} 28. Rfe1 {[%emt 0:01:52]} Ne5 {[%emt 0:02:21]} 29. Bc3 {[%emt 0:02:06]} Kf7 {[%emt 0:01:12]} 30. Bxe5 {[%emt 0:08:15]} Bxe5 {[%emt 0:00:49]} 31. Bg2 {[%emt 0:01:37]} Bd7 {[%emt 0:02:10]} 32. Bf3 {[%emt 0:01:37]} b5 {[%emt 0:02:29]} 33. b4 {[%emt 0:02:30]} cxb4 {[%emt 0:00:07]} 34. axb4 {[%emt 0:00:14]} a4 {[%emt 0:00:19]} 35. c5 {[%emt 0:01:11]} a3 {[%emt 0:00:38]} 36. c6 {[%emt 0:01:40]} Bf5 {[%emt 0:00:37]} 37. Be4 {[%emt 0:00:51]} Bxe4+ {[%emt 0:01:33]} 38. dxe4 {[%emt 0:00:48]} a2 {[%emt 0:00:27]} 39. Rbc1 {[%emt 0:00:29]} a1=Q 40. Rxa1 {[%emt 0:00:00]} Bxa1 {[%emt 0:00:00]} 41. Rxa1 {[%emt 0:00:24]} Rxe4 {[%emt 0:05:58]} 42. Rc1 {[%emt 0:00:53]} Re8 {[%emt 0:00:14]} 43. Kg2 {[%emt 0:00:52]} Ra8 {[%emt 0:00:50]} 44. Re1 {[%emt 0:03:09]} Ra2+ {[%emt 0:05:40]} 45. Kf3 {[%emt 0:00:37]} Ra3+ {[%emt 0:03:05]} 46. Re3 {[%emt 0:01:10]} Ra4 {[%emt 0:00:11]} 47. h4 {[%emt 0:05:00]} g5 {[%emt 0:01:44]} 48. hxg5 {[%emt 0:02:35]} hxg5 {[%emt 0:00:10]} 49. Rc3 {[%emt 0:00:21]} Ra8 {[%emt 0:00:23]} 50. Kg4 {[%emt 0:00:28]} Kf6 {[%emt 0:01:21]} 51. Re3 {[%emt 0:00:49]} Ra4 {[%emt 0:00:27]} 52. Re4 {[%emt 0:01:25]} Kg6 {[%emt 0:00:16]} 53. c7 {[%emt 0:01:03]} Ra8 {[%emt 0:00:10]} 54. Re6+ {[%emt 0:00:26]} Kf7 {[%emt 0:00:06]} 55. Rxd6 {[%emt 0:00:15]} Ke7 {[%emt 0:00:17]} 56. Rd8 {[%emt 0:00:35]} 1-0